bitfinex/quotes_SOLUSD_20250908
["timestamp","ask_amount","ask_price","bid_price","bid_amount"]
[1757366891564,4.64037122,215.5,215.49,36.76]
[1757366891759,7.8207082,215.5,215.38,4.64295663]
[1757366891965,3.18033698,215.47,215.39,36.74]
[1757366892280,3.18033698,215.42,215.4,36.74]
[1757366892484,8.53264699,215.41,215.4,36.74]
[1757366895167,8.53264699,215.41,215.34,26.0]
[1757366895373,3.18033698,215.38,215.34,26.0]
[1757366895673,3.18033698,215.39,215.34,26.0]
[1757366895985,3.18033698,215.38,215.33,0.03]
[1757366896190,26.0,215.47,215.37,36.83]
[1757366896191,3.18033698,215.45,215.37,36.83]
[1757366896487,0.71,215.44,215.37,36.83]
[1757366896790,0.71,215.43,215.37,36.83]
[1757366897008,171.3,215.54,215.37,36.83]
[1757366897009,0.71,215.49,215.4,26.0]
[1757366897295,0.71,215.49,215.44,26.0]
[1757366897476,0.71,215.49,215.45,36.82]
[1757366897867,0.71,215.51,215.45,36.82]
[1757366898064,13.59559401,215.52,215.45,36.82]
[1757366898271,0.71,215.5,215.45,36.82]
[1757366898493,0.71,215.49,215.45,36.82]
[1757366898700,0.71,215.51,215.45,41.46125026]
[1757366900688,13.59559401,215.55,215.45,41.46125026]
[1757366900689,0.71,215.53,215.45,16.24487058]
[1757366900998,0.71,215.53,215.46,36.82]
[1757366901175,16.77593099,215.55,215.46,36.82]
[1757366901487,3.89033698,215.52,215.46,36.82]
[1757366901690,3.18033698,215.5,215.47,36.8]
[1757366901880,0.71,215.49,215.47,36.8]
[1757366902079,0.71,215.48,215.47,36.8]
[1757366903480,0.71,215.48,215.42,4.64209451]
[1757366903683,0.71,215.48,215.43,36.8]
[1757366903871,0.71,215.47,215.43,36.8]
[1757366904273,0.71,215.47,215.44,36.78]
[1757366904572,0.71,215.47,215.43,4.64170784]
[1757366904772,0.71,215.47,215.44,36.78]
[1757366905284,0.06,215.48,215.44,36.78]
[1757366906285,0.06,215.48,215.45,16.24506845]
[1757366907176,0.06,215.48,215.47,26.0]
[1757366907378,0.06,215.48,215.47,62.76]
[1757366909205,0.06,215.48,215.47,67.40101731]
[1757366912275,0.77,215.48,215.47,67.40101731]
[1757366912495,0.06,215.48,215.47,67.40101731]
[1757366912691,0.06,215.48,215.47,30.64101731]
[1757366912888,0.77,215.48,215.47,36.72]
[1757366913789,0.77,215.48,215.47,41.36101731]
[1757366914301,0.06,215.48,215.47,41.36101731]
[1757366916994,0.77,215.48,215.47,41.36101731]
[1757366917202,0.77,215.48,215.47,36.66]
[1757366919888,0.77,215.48,215.36,23.21638826]
[1757366919889,3.95033698,215.48,215.36,23.21638826]
[1757366920096,3.18033698,215.46,215.38,62.64]
[1757366920295,0.66,215.45,215.38,62.64]
[1757366920504,0.66,215.44,215.38,62.64]
[1757366920704,0.66,215.44,215.38,78.89001752]
[1757366921307,0.66,215.44,215.39,36.64]
[1757366921813,0.66,215.44,215.4,4.64252553]
[1757366922012,0.66,215.43,215.41,36.64]
[1757366923206,0.66,215.43,215.41,41.28213261]
[1757366925511,0.66,215.43,215.39,4.64274107]
[1757366925720,0.66,215.43,215.4,36.58]
[1757366926090,0.66,215.43,215.39,4.64274107]
[1757366926407,0.66,215.43,215.41,36.58]
[1757366927088,3.18033698,215.46,215.41,41.22222003]
[1757366927284,0.66,215.45,215.41,41.22222003]
[1757366927489,0.66,215.44,215.41,41.22222003]
[1757366930588,0.66,215.44,215.42,36.58]
[1757366931402,7.82159121,215.46,215.42,36.58]
[1757366931608,0.66,215.43,215.42,36.58]
[1757366932314,0.06,215.48,215.45,26.0]
[1757366932626,0.06,215.48,215.47,4.64101731]
[1757366936011,0.06,215.51,215.5,26.0]
[1757366936205,0.06,215.51,215.5,62.58]
[1757366937217,0.06,215.51,215.5,67.22037122]
[1757366943033,0.01243095,215.51,215.5,67.22037122]
[1757366944532,0.01243095,215.51,215.5,30.64037122]
[1757366944833,0.01243095,215.51,215.5,67.22037122]
[1757366949239,0.67243095,215.51,215.5,67.22037122]
[1757366949641,0.67243095,215.51,215.5,67.20037122]
[1757366956237,0.67243095,215.51,215.47,11.60254327]
[1757366956422,0.69,215.5,215.47,11.60254327]
[1757366956625,0.69,215.49,215.4,56.59175433]
[1757366956938,0.69,215.48,215.41,16.24808504]
[1757366957133,0.69,215.47,215.44,26.0]
[1757366957341,0.69,215.47,215.45,36.56]
[1757366957541,0.69,215.46,215.45,36.56]
[1757366958424,0.69,215.46,215.45,41.20144813]
[1757366959943,0.69,215.46,215.45,4.64144813]
[1757366960247,0.69,215.46,215.45,41.20144813]
[1757366960545,0.69,215.46,215.44,26.0]
[1757366960745,9.61110767,215.5,215.45,36.56]
[1757366961429,0.69,215.49,215.45,36.59]
[1757366961825,0.69,215.48,215.45,36.59]
[1757366962029,0.69,215.47,215.45,36.59]
[1757366962239,0.69,215.46,215.45,36.59]
[1757366962850,0.69,215.46,215.45,41.23144813]
[1757366964846,5.66065912,215.46,215.45,0.03]
[1757366965030,5.66065912,215.46,215.45,36.59]
[1757366965950,10.30189183,215.46,215.45,36.59]
[1757366966251,5.66065912,215.46,215.45,36.59]
[1757366966743,0.69,215.46,215.45,36.59]
[1757366968633,0.69,215.46,215.45,0.03]
[1757366968826,0.69,215.46,215.45,36.59]
[1757366970852,5.33123271,215.46,215.45,36.59]
[1757366971055,10.30189183,215.46,215.45,36.59]
[1757366972538,10.30189183,215.46,215.45,0.03]
[1757366972754,0.69,215.49,215.45,36.59]
[1757366972930,0.01243095,215.51,215.45,41.23143325]
[1757366973252,0.01243095,215.51,215.45,4.67143325]
[1757366973253,0.69,215.5,215.45,4.67143325]
[1757366973457,0.01243095,215.51,215.46,36.56]
[1757366973856,0.70243095,215.51,215.46,36.56]
[1757366974961,0.70243095,215.51,215.47,4.64101731]
[1757366980860,0.71,215.5,215.47,4.64101731]
[1757366981064,0.71,215.49,215.48,36.56]
[1757366982052,0.01243095,215.51,215.48,36.56]
[1757366982053,0.72243095,215.51,215.48,36.56]
[1757366982439,0.71,215.5,215.48,36.56]
[1757366983250,0.01243095,215.51,215.48,41.20062673]
[1757366986151,0.72243095,215.51,215.48,41.20062673]
[1757366986479,0.72243095,215.51,215.49,36.56]
[1757366986782,0.72243095,215.51,215.5,36.56]
[1757366988362,0.72243095,215.51,215.47,11.60231348]
[1757366988666,0.71,215.5,215.48,36.56]
[1757366989063,0.71,215.49,215.45,4.67144752]
[1757366989270,0.71,215.48,215.46,36.56]
[1757366989457,0.71,215.47,215.46,36.56]
[1757366989860,0.71,215.47,215.46,41.20123271]
[1757366990069,0.71,215.48,215.46,41.20123271]
[1757366991868,0.01243095,215.51,215.46,41.20123271]
[1757366992066,0.71,215.47,215.46,41.20123271]
[1757366992268,0.01243095,215.51,215.46,41.20123271]
[1757366992470,0.71,215.49,215.46,41.20123271]
[1757366992773,0.71,215.48,215.47,36.56]
[1757366998378,0.71,215.48,215.47,36.59]
[1757367001473,0.71,215.48,215.47,36.57]
[1757367002365,0.72243095,215.51,215.47,36.57]
[1757367002592,0.71,215.5,215.47,36.57]
[1757367002887,0.71,215.49,215.47,36.57]
[1757367003257,0.71,215.49,215.47,41.21098329]
[1757367004678,13.60802496,215.51,215.47,41.21098329]
[1757367004885,0.71,215.48,215.47,41.21098329]
[1757367005184,0.71,215.48,215.47,36.57]
[1757367005859,0.71,215.48,215.47,0.03]
[1757367006081,13.60802496,215.51,215.47,0.03]
[1757367006381,0.72243095,215.51,215.48,36.54]
[1757367006589,0.71,215.5,215.48,36.54]
[1757367007878,0.71,215.5,215.48,41.180711]
[1757367008261,0.71,215.5,215.48,36.54]
[1757367008576,0.71,215.49,215.48,36.54]
[1757367011281,5.35061104,215.49,215.48,36.54]
[1757367011877,5.35061104,215.49,215.47,0.03]
[1757367012184,16.7782966,215.48,215.47,0.03]
[1757367012782,17.4582966,215.48,215.47,0.03]
[1757367015181,22.09909853,215.48,215.47,0.03]
[1757367016293,18.91639594,215.48,215.47,0.03]
[1757367016474,22.09909853,215.48,215.47,0.03]
[1757367016669,18.91639594,215.48,215.47,0.03]
[1757367016880,22.09909853,215.48,215.47,0.03]
[1757367017783,14.27559401,215.48,215.47,0.03]
[1757367017975,17.4582966,215.48,215.47,0.03]
[1757367018990,22.09909853,215.48,215.47,0.03]
[1757367035796,18.91639594,215.48,215.47,0.03]
[1757367035991,22.09909853,215.48,215.47,0.03]
[1757367036897,18.91639594,215.48,215.47,0.03]
[1757367037104,22.09909853,215.48,215.47,0.03]
[1757367040699,18.91639594,215.48,215.47,0.03]
[1757367040998,22.09909853,215.48,215.47,0.03]
[1757367043708,18.91639594,215.48,215.47,0.03]
[1757367044010,22.09909853,215.48,215.47,0.03]
[1757367045206,0.01243095,215.51,215.47,0.03]
[1757367045710,0.01243095,215.51,215.48,36.5]
[1757367046997,0.01243095,215.51,215.48,41.14060788]
[1757367050813,0.01243095,215.51,215.49,36.5]
[1757367051110,0.01243095,215.51,215.48,36.48]
[1757367053193,0.73243095,215.51,215.48,36.48]
[1757367053715,0.01243095,215.51,215.48,36.48]
[1757367053889,0.01243095,215.51,215.48,41.12067447]
[1757367054808,0.01243095,215.51,215.49,36.48]
[1757367055791,0.01243095,215.51,215.5,36.48]
[1757367059199,0.01243095,215.51,215.5,41.12037122]
[1757367060616,0.73243095,215.51,215.5,36.48]
[1757367061001,0.01243095,215.51,215.5,36.48]
[1757367063496,0.73243095,215.51,215.5,36.48]
[1757367065718,0.01243095,215.51,215.5,36.48]
[1757367066018,0.73243095,215.51,215.48,36.46]
[1757367066324,0.72,215.5,215.48,36.46]
[1757367067820,0.01243095,215.51,215.47,0.03]
[1757367067821,18.58066746,215.51,215.47,0.03]
[1757367068120,18.56823651,215.48,215.47,0.03]
[1757367068608,19.28823651,215.48,215.47,0.03]
[1757367069808,23.92903844,215.48,215.47,0.03]
[1757367071831,18.95639594,215.48,215.47,0.03]
[1757367072009,23.92903844,215.48,215.47,0.03]
[1757367072922,18.95639594,215.48,215.47,0.03]
[1757367073111,23.92903844,215.48,215.47,0.03]
[1757367073732,18.95639594,215.48,215.47,0.03]
[1757367073907,23.92903844,215.48,215.47,0.03]
[1757367082038,18.95639594,215.48,215.47,0.03]
[1757367082213,23.92903844,215.48,215.47,0.03]
[1757367091137,60.36903844,215.48,215.47,0.03]
[1757367092450,60.36903844,215.48,215.44,0.03]
[1757367092451,39.59559401,215.45,215.44,1e-08]
[1757367092642,81.00823651,215.45,215.44,1e-08]
[1757367092843,81.69823651,215.45,215.44,1e-08]
[1757367093257,88.19751423,215.45,215.44,1e-08]
[1757367094840,99.80113455,215.45,215.4,0.03]
[1757367095160,99.80113455,215.45,215.39,0.03]
[1757367095161,13.59559401,215.4,215.39,0.03]
[1757367095337,64.62340454,215.4,215.39,0.03]
[1757367095534,65.31340454,215.4,215.39,0.03]
[1757367096057,67.17183834,215.4,215.39,0.03]
[1757367102269,39.59559401,215.38,215.34,0.03]
[1757367102438,13.59559401,215.37,215.32,0.03]
[1757367102640,18.56823651,215.34,215.32,0.03]
[1757367103264,19.25823651,215.34,215.32,0.03]
[1757367104344,23.90205558,215.34,215.32,0.03]
[1757367105258,18.23941308,215.34,215.32,0.03]
[1757367105562,23.21205558,215.34,215.32,0.03]
[1757367112969,13.59559401,215.34,215.32,0.03]
[1757367113271,13.59559401,215.34,215.33,0.06]
[1757367113770,13.59559401,215.34,215.33,0.03]
[1757367113977,39.46555424,215.39,215.33,0.06]
[1757367113978,13.59559401,215.39,215.33,0.06]
[1757367114171,13.59559401,215.37,215.33,0.06]
[1757367114373,13.59559401,215.37,215.34,0.03]
[1757367114674,18.56823651,215.37,215.33,0.03]
[1757367114862,13.59559401,215.35,215.33,0.03]
[1757367116354,18.23931374,215.35,215.33,0.03]
[1757367116560,18.56823651,215.34,215.33,0.03]
[1757367118061,4.64381907,215.34,215.33,0.03]
[1757367118272,9.61646157,215.34,215.33,0.03]
[1757367118463,7.83229002,215.34,215.33,0.03]
[1757367119869,4.64381907,215.34,215.33,0.03]
[1757367121869,4.64360343,215.35,215.33,0.03]
[1757367122873,5.33360343,215.35,215.33,0.03]
[1757367125079,4.64360343,215.35,215.33,0.03]
[1757367125280,5.33381907,215.34,215.33,0.03]
[1757367125961,4.64381907,215.34,215.33,0.03]
[1757367126160,5.33381907,215.34,215.33,0.03]
[1757367126783,18.92941308,215.34,215.33,0.03]
[1757367127975,18.23941308,215.34,215.33,0.03]
[1757367128377,18.92941308,215.34,215.33,0.03]
[1757367130855,22.11788403,215.34,215.33,0.03]
[1757367135379,39.59559401,215.33,215.32,0.03]
[1757367135771,43.48406496,215.33,215.32,0.03]
[1757367136167,42.78406496,215.31,215.3,0.03]
[1757367136561,43.48406496,215.31,215.3,0.03]
[1757367136984,45.34301698,215.31,215.3,0.03]
[1757367137386,49.98748309,215.31,215.3,0.03]
[1757367138476,46.79901214,215.31,215.3,0.03]
[1757367138676,48.12853107,215.31,215.3,0.03]
[1757367138870,18.24006012,215.31,215.3,0.03]
[1757367139085,21.42853107,215.31,215.3,0.03]
[1757367140891,13.59559401,215.31,215.3,0.03]
[1757367143185,22.12853107,215.31,215.3,0.03]
[1757367145791,48.12853107,215.31,215.3,0.03]
[1757367146170,49.98748308,215.31,215.3,0.03]
[1757367148995,23.98748308,215.31,215.3,0.03]
[1757367156304,60.38748308,215.31,215.3,0.03]
[1757367164177,13.59559401,215.3,215.29,1e-08]
[1757367164379,39.59559401,215.27,215.25,0.2]
[1757367164687,16.78406496,215.26,215.25,0.2]
[1757367164885,17.44406496,215.26,215.25,0.2]
[1757367166196,22.08960988,215.26,215.25,0.2]
[1757367166401,21.42960988,215.26,215.25,0.2]
[1757367167902,22.08960988,215.26,215.25,0.2]
[1757367168600,156.58960988,215.26,215.25,0.2]
[1757367169378,155.92960988,215.26,215.25,0.2]
[1757367170207,156.58960988,215.26,215.25,0.2]
[1757367170704,148.09559401,215.26,215.25,0.29]
[1757367172797,155.92960988,215.26,215.25,0.2]
[1757367173592,156.58960988,215.26,215.25,0.2]
[1757367174896,152.74113893,215.26,215.25,0.2]
[1757367183411,153.40113893,215.26,215.25,0.2]
[1757367183708,194.74582847,215.26,215.25,0.2]
[1757367189341,60.24582847,215.26,215.25,0.2]
[1757367190328,55.26113893,215.26,215.25,0.2]
[1757367190502,60.24582847,215.26,215.25,0.2]
[1757367196003,39.59559401,215.25,215.23,0.2]
[1757367196415,46.43984051,215.25,215.23,0.2]
[1757367196615,47.15984051,215.25,215.23,0.2]
[1757367198124,51.80560125,215.25,215.24,1e-08]
[1757367198521,51.80560125,215.25,215.22,0.03]
[1757367198522,13.59559401,215.23,215.22,0.03]
[1757367198810,54.92028355,215.23,215.22,0.03]
[1757367199015,55.64028355,215.23,215.22,0.03]
[1757367199823,57.5000999,215.23,215.22,0.03]
[1757367200121,62.14629234,215.23,215.22,0.03]
[1757367201320,39.59559401,215.21,215.2,0.03]
[1757367201512,13.59559401,215.2,215.19,1e-08]
[1757367201840,19.30028355,215.2,215.19,1e-08]
[1757367202626,23.94712369,215.2,215.19,1e-08]
[1757367203451,18.24243415,215.2,215.19,1e-08]
[1757367203619,23.22712369,215.2,215.19,1e-08]
[1757367204139,59.56712369,215.2,215.19,1e-08]
[1757367205041,60.28712369,215.2,215.19,1e-08]
[1757367207319,62.147113,215.2,215.19,1e-08]
[1757367211223,57.16242346,215.2,215.19,1e-08]
[1757367211425,62.147113,215.2,215.19,1e-08]
[1757367215931,61.427113,215.2,215.19,1e-08]
[1757367216145,62.147113,215.2,215.19,1e-08]
[1757367218031,61.407113,215.2,215.19,1e-08]
[1757367222163,25.087113,215.2,215.19,1e-08]
[1757367222449,61.407113,215.2,215.19,1e-08]
[1757367223733,25.087113,215.2,215.19,1e-08]
[1757367224036,59.54712369,215.2,215.19,1e-08]
[1757367227030,59.60712369,215.2,215.19,1e-08]
[1757367227232,60.31712369,215.2,215.19,1e-08]
[1757367233948,55.33243415,215.2,215.19,1e-08]
[1757367234151,60.31712369,215.2,215.19,1e-08]
[1757367240977,55.33243415,215.2,215.19,1e-08]
[1757367241148,60.31712369,215.2,215.19,1e-08]
[1757367241575,55.33243415,215.2,215.19,1e-08]
[1757367241756,60.31712369,215.2,215.19,1e-08]
[1757367242365,58.52578581,215.2,215.19,1e-08]
[1757367243466,22.20578581,215.2,215.19,1e-08]
[1757367248370,19.01243415,215.2,215.19,1e-08]
[1757367248573,22.20578581,215.2,215.19,1e-08]
[1757367251895,18.30243415,215.2,215.19,1e-08]
[1757367252360,0.06,215.2,215.19,1e-08]
[1757367252567,0.06,215.2,215.19,0.29000001]
[1757367258379,0.06,215.2,215.19,1e-08]
[1757367259359,0.06,215.2,215.19,0.29000001]
[1757367259969,0.06,215.2,215.19,1e-08]
[1757367260371,0.06,215.2,215.19,0.29000001]
[1757367263461,0.06,215.2,215.19,1e-08]
[1757367263973,0.72,215.2,215.19,1e-08]
[1757367264303,3.91335166,215.2,215.19,1e-08]
[1757367264962,17.50894567,215.2,215.19,1e-08]
[1757367265387,19.36858908,215.2,215.19,1e-08]
[1757367265573,17.50894567,215.2,215.19,1e-08]
[1757367265958,24.01542923,215.2,215.19,1e-08]
[1757367294602,20.82207757,215.2,215.19,1e-08]
[1757367294807,24.01542923,215.2,215.19,1e-08]
[1757367304437,25.81166642,215.2,215.19,1e-08]
[1757367307705,15.51523743,215.2,215.19,0.29000001]
[1757367307911,0.06,215.2,215.19,0.29000001]
[1757367311611,0.06,215.2,215.19,1e-08]
[1757367320121,0.76,215.2,215.19,1e-08]
[1757367321614,0.06,215.2,215.19,1e-08]
[1757367322721,0.76,215.2,215.19,1e-08]
[1757367323519,0.06,215.2,215.19,1e-08]
[1757367327329,5.19746466,215.2,215.19,1e-08]
[1757367328009,0.06,215.2,215.19,1e-08]
[1757367330618,0.76,215.2,215.19,1e-08]
[1757367331535,0.06,215.2,215.19,1e-08]
[1757367331908,0.76,215.2,215.19,1e-08]
[1757367334234,0.76,215.2,215.19,36.10000001]
[1757367337838,0.06,215.2,215.19,36.10000001]
[1757367339136,0.76,215.2,215.19,36.10000001]
[1757367339534,0.06,215.2,215.19,36.10000001]
[1757367341047,0.06,215.2,215.19,40.74705609]
[1757367342547,0.06,215.2,215.19,41.03705609]
[1757367343524,0.06,215.2,215.19,54.9785483]
[1757367346844,0.06,215.2,215.19,18.8785483]
[1757367347048,0.06,215.2,215.19,54.9585483]
[1757367347839,0.06,215.2,215.19,54.6685483]
[1757367351046,0.06,215.2,215.19,18.5885483]
[1757367351244,0.06,215.2,215.19,54.6485483]
[1757367355547,0.06,215.2,215.19,18.5885483]
[1757367355754,0.06,215.2,215.19,54.6485483]
[1757367356968,0.06,215.2,215.19,18.5885483]
[1757367357255,0.78,215.2,215.19,54.6485483]
[1757367357446,0.06,215.2,215.19,54.6485483]
[1757367360143,0.06,215.2,215.19,54.9385483]
[1757367367467,0.06,215.2,215.19,54.6485483]
[1757367380165,0.06,215.23,215.22,26.0]
[1757367380355,0.72,215.23,215.22,62.55756899]
[1757367380950,0.72,215.23,215.22,64.41608915]
[1757367381466,0.72,215.23,215.22,69.06249747]
[1757367396974,0.06,215.23,215.22,69.06249747]
[1757367397363,0.72,215.23,215.22,69.06249747]
[1757367398569,0.06,215.23,215.22,69.06249747]
[1757367399165,0.72,215.23,215.22,69.06249747]
[1757367401474,0.06,215.23,215.22,69.06249747]
[1757367402569,0.78,215.23,215.22,69.06249747]
[1757367406298,0.06,215.23,215.22,69.06249747]
[1757367406885,0.78,215.23,215.22,69.06249747]
[1757367409898,0.06,215.23,215.22,69.35249747]
[1757367410088,0.06,215.25,215.22,80.96851828]
[1757367410392,0.06,215.25,215.23,0.29]
[1757367410601,0.06,215.25,215.24,36.49751719]
[1757367411089,0.06,215.25,215.24,41.14349377]
[1757367411483,0.06,215.25,215.24,43.00166857]
[1757367411695,0.06,215.25,215.24,43.29166857]
[1757367411997,0.06,215.26,215.24,43.29166857]
[1757367412398,0.06,215.26,215.24,41.43349377]
[1757367412787,0.06,215.26,215.25,1.8580885]
[1757367414305,0.06,215.26,215.25,6.50384924]
[1757367421103,0.78,215.26,215.25,6.50384924]
[1757367421798,0.78,215.26,215.25,68.42384924]
[1757367424703,0.78,215.26,215.25,68.40384924]
[1757367426891,0.78,215.26,215.25,68.43384924]
[1757367428392,0.78,215.26,215.25,32.53384924]
[1757367428706,0.78,215.26,215.25,68.43384924]
[1757367431603,0.78,215.26,215.25,32.53384924]
[1757367431792,0.78,215.26,215.25,68.43384924]
[1757367436012,0.78,215.26,215.25,32.53384924]
[1757367436204,0.78,215.26,215.25,68.41384924]
[1757367436411,0.78,215.26,215.25,32.53384924]
[1757367436608,0.78,215.26,215.25,68.41384924]
[1757367437419,0.78,215.26,215.25,63.7680885]
[1757367437616,0.78,215.26,215.25,61.91]
[1757367437915,0.78,215.26,215.25,35.91]
[1757367439322,0.78,215.26,215.25,0.03]
[1757367439548,0.78,215.26,215.25,35.91]
[1757367460920,0.06,215.26,215.25,35.91]
[1757367461120,0.72,215.26,215.25,35.91]
[1757367479434,0.06,215.26,215.25,35.91]
[1757367479731,0.72,215.26,215.25,35.91]
[1757367480625,0.06,215.26,215.25,0.03]
[1757367480923,0.06,215.26,215.25,40.78576074]
[1757367481325,0.06,215.26,215.25,42.64376292]
[1757367486522,0.06,215.26,215.25,6.82376292]
[1757367486750,0.06,215.26,215.25,42.62376292]
[1757367492238,0.06,215.26,215.25,6.82376292]
[1757367492442,0.06,215.26,215.25,42.62376292]
[1757367495537,0.06,215.26,215.25,42.33376292]
[1757367496158,0.06,215.27,215.25,42.62376292]
[1757367496362,0.06,215.27,215.26,0.55746539]
[1757367496658,1e-08,215.27,215.26,67.27301031]
[1757367496855,1e-08,215.27,215.26,69.13075362]
[1757367498042,0.06,215.29,215.26,80.74461592]
[1757367498354,0.06,215.3,215.26,80.74461592]
[1757367498355,0.06,215.3,215.27,0.29]
[1757367498551,0.06,215.3,215.28,36.3374136]
[1757367499246,0.06,215.3,215.29,1.85765703]
[1757367499954,0.06,215.3,215.29,10.16017305]
[1757367500338,0.06,215.32,215.29,10.16017305]
[1757367500658,0.06,215.32,215.3,35.78]
[1757367500856,0.06,215.32,215.3,36.33736182]
[1757367501047,0.06,215.32,215.3,38.48493258]
[1757367501248,0.06,215.32,215.3,36.62736182]
[1757367502161,0.06,215.32,215.31,32.50203687]
[1757367502458,1e-08,215.33,215.32,26.0]
[1757367502660,1e-08,215.33,215.32,62.62731005]
[1757367503244,1e-08,215.33,215.32,64.19462205]
[1757367504249,1e-08,215.33,215.32,68.83887246]
[1757367505768,0.06,215.36,215.32,94.33509251]
[1757367505972,0.06,215.36,215.33,0.29]
[1757367506151,0.06,215.36,215.34,36.31725828]
[1757367506345,0.06,215.37,215.36,26.0]
[1757367506568,0.06,215.37,215.36,61.76]
[1757367506861,0.06,215.37,215.36,62.31720653]
[1757367507080,0.67,215.4,215.36,64.17425985]
[1757367507254,0.1,215.42,215.36,64.17425985]
[1757367507453,0.73,215.39,215.37,4.64317221]
[1757367507651,0.73,215.39,215.38,35.76]
[1757367508252,0.73,215.39,215.38,37.61705332]
[1757367509463,0.73,215.39,215.38,42.26000995]
[1757367511867,0.73,215.39,215.38,6.50000995]
[1757367512059,1e-08,215.39,215.38,42.26000995]
[1757367512656,0.1,215.42,215.41,26.0]
[1757367512860,0.1,215.42,215.41,66.40231001]
[1757367513372,0.1,215.42,215.41,68.25884618]
[1757367513954,1e-08,215.42,215.41,68.25884618]
[1757367516464,1e-08,215.42,215.41,68.54884618]
[1757367516762,1e-08,215.42,215.41,68.25884618]
[1757367517987,1e-08,215.42,215.41,32.49884618]
[1757367518185,0.67000001,215.42,215.41,66.38231001]
[1757367528580,0.67000001,215.42,215.41,68.23910472]
[1757367531896,0.67000001,215.42,215.41,68.73910472]
[1757367536689,1e-08,215.42,215.41,68.73910472]
[1757367538297,0.67000001,215.42,215.41,68.73910472]
[1757367541280,1e-08,215.42,215.41,68.73910472]
[1757367542386,0.67000001,215.42,215.41,68.73910472]
[1757367543101,1e-08,215.42,215.41,68.73910472]
[1757367546398,0.67000001,215.42,215.41,68.73910472]
[1757367546704,0.67000001,215.42,215.41,68.76910472]
[1757367548719,0.67000001,215.42,215.41,68.74910472]
[1757367548911,1e-08,215.42,215.41,68.74910472]
[1757367549497,1e-08,215.42,215.41,33.02910472]
[1757367549710,1e-08,215.42,215.41,68.72910472]
[1757367550213,0.70000001,215.42,215.41,68.72910472]
[1757367550904,1e-08,215.42,215.41,68.72910472]
[1757367552600,0.70000001,215.42,215.41,68.72910472]
[1757367553308,0.70000001,215.42,215.41,33.02910472]
[1757367553513,0.70000001,215.42,215.41,68.72910472]
[1757367554406,0.70000001,215.42,215.41,68.22910472]
[1757367558107,1e-08,215.42,215.41,68.22910472]
[1757367559199,0.70000001,215.42,215.41,68.22910472]
[1757367560496,1e-08,215.42,215.41,68.22910472]
[1757367563314,1e-08,215.42,215.41,66.37231001]
[1757367564699,1e-08,215.42,215.41,68.22901853]
[1757367566218,1e-08,215.44,215.41,80.12479356]
[1757367566723,1e-08,215.44,215.41,78.26808504]
[1757367566934,1e-08,215.44,215.42,1.85653617]
[1757367567097,1e-08,215.44,215.43,35.7]
[1757367567301,1e-08,215.44,215.43,40.34187903]
[1757367567723,1e-08,215.44,215.43,42.1984152]
[1757367568617,1e-08,215.44,215.43,40.34187903]
[1757367569724,0.06,215.47,215.46,26.0]
[1757367570029,0.06,215.47,215.46,61.68]
[1757367571924,0.06,215.47,215.46,66.32123271]
[1757367573429,0.76,215.47,215.46,66.32123271]
[1757367574233,0.06,215.47,215.46,66.32123271]
[1757367574418,0.76,215.47,215.46,66.32123271]
[1757367575419,0.06,215.47,215.46,66.32123271]
[1757367577435,0.06,215.47,215.46,68.17742427]